fUST/lending_fUST_20240114
["ID","MTS","AMOUNT","RATE_DAILY","PERIOD"]
[311496391,1705164643952,-500.0,0.00027397,2]
[311496393,1705164643960,-500.0,0.00027397,2]
[311496394,1705164643971,-507.34473886,0.00027397,2]
[311496395,1705164643980,-500.0,0.00027397,2]
[311496396,1705164643989,-500.0,0.00027397,2]
[311496398,1705164643999,-1315.32,0.00027397,2]
[311496399,1705164644008,-500.0,0.00027397,2]
[311496400,1705164644017,-500.0,0.00027397,2]
[311496402,1705164644026,-500.0,0.00027397,2]
[311496403,1705164644036,-500.0,0.00027397,2]
[311496405,1705164644046,-500.0,0.00027397,2]
[311496406,1705164644055,-516.58930631,0.00027397,2]
[311496408,1705164644064,-500.0,0.00027397,2]
[311496409,1705164644074,-500.0,0.00027397,2]
[311496410,1705164644083,-618.17282795,0.00027397,2]
[311496412,1705164644093,-500.0,0.00027397,2]
[311496413,1705164644103,-500.0,0.00027397,2]
[311496414,1705164644112,-500.0,0.00027397,2]
[311496416,1705164644122,-500.0,0.00027397,2]
[311496418,1705164644132,-500.0,0.00027397,2]
[311496420,1705164644142,-500.0,0.00027397,2]
[311496422,1705164644152,-500.0,0.00027397,2]
[311496424,1705164644163,-500.0,0.00027397,2]
[311496425,1705164644173,-610.73,0.00027397,2]
[311496426,1705164644183,-500.0,0.00027397,2]
[311496427,1705164644193,-504.95005568,0.00027397,2]
[311496428,1705164644203,-500.0,0.00027397,2]
[311496430,1705164644212,-500.0,0.00027397,2]
[311496431,1705164644222,-500.0,0.00027397,2]
[311496433,1705164644232,-500.0,0.00027397,2]
[311496435,1705164644242,-885.8,0.00027397,2]
[311496437,1705164644254,-500.0,0.00027397,2]
[311496439,1705164644263,-597.99,0.00027397,2]
[311496441,1705164644273,-500.0,0.00027397,2]
[311496443,1705164644282,-500.0,0.00027397,2]
[311496446,1705164644292,-500.0,0.00027397,2]
[311496447,1705164644302,-500.0,0.00027397,2]
[311496449,1705164644311,-500.0,0.00027397,2]
[311496451,1705164644320,-503.83503635,0.00027397,2]
[311496453,1705164644329,-500.0,0.00027397,2]
[311496455,1705164644338,-2594.77,0.00027397,2]
[311496457,1705164644347,-500.0,0.00027397,2]
[311496459,1705164644357,-500.0,0.00027397,2]
[311496461,1705164644366,-500.0,0.00027397,2]
[311496463,1705164644375,-500.0,0.00027397,2]
[311496465,1705164644384,-500.0,0.00027397,2]
[311496467,1705164644393,-500.0,0.00027397,2]
[311496469,1705164644402,-500.0,0.00027397,2]
[311496471,1705164644413,-500.0,0.00027397,2]
[311496473,1705164644421,-162.40182153,0.00027397,2]
[311496475,1705164644430,-2644.44638445,0.000274,2]
[311496477,1705164644443,-2015.22642048,0.000274,2]
[311496645,1705164646240,-154.9690062,0.00024656,4]
[311496648,1705164646253,-1289.2417214,0.00027395,2]
[311496649,1705164646262,-7.26943079,0.00027396,2]
[311496652,1705164646274,-397.7280461,0.00027396,2]
[311496654,1705164646284,-3883.9087139,0.00027396,2]
[311500215,1705164859366,268.60451571,0.0001,2]
[311500381,1705165594876,973.52981026,0.00016,5]
[311500524,1705165834068,-154.9690062,0.00024655,4]
[311500526,1705165834078,-943.92492829,0.00024656,2]
[311500528,1705165834090,-39.71388351,0.00024656,2]
[311500530,1705165834098,-5253.62665859,0.00024656,2]
[311500964,1705165838459,-537.24416381,0.00024656,2]
[311501182,1705165841457,-724.86581785,0.00024656,2]
[311501183,1705165841467,-223.29298111,0.00025297,2]
[311501185,1705165841476,-24900.0,0.00025307,2]
[311501187,1705165841485,-264.020091,0.00025572,2]
[311501189,1705165841494,-164.574171,0.00025652,2]
[311501191,1705165841503,-155.56360907,0.0002712,15]
[311501194,1705165841515,-44.43639093,0.0002712,15]
[311501196,1705165841524,-490.25,0.00027386,3]
[311501198,1705165841536,-408.54,0.00027386,3]
[311501200,1705165841546,-340.45,0.00027386,3]
[311501202,1705165841555,-226.3364049,0.00027395,2]
[311501204,1705165841564,-794.70585194,0.00027395,2]
[311501206,1705165841574,-5579.51870927,0.00027395,2]
[311501208,1705165841583,-4782.83239903,0.00027395,2]
[311501210,1705165841592,-155.48030019,0.00027395,2]
[311501212,1705165841600,-10315.90697274,0.00027396,2]
[311503981,1705166622711,-154.98450155,0.00024631,4]
[311503991,1705166642820,2704.09326204,0.00024631,5]
[311503995,1705166678659,-2140.92223641,0.00024632,2]
[311504010,1705166752390,1588.00796449,0.00024629,2]
[311504020,1705166792724,-154.98450155,0.0002463,4]
[311504021,1705166792747,-3257.00753396,0.0002463,2]
[311504089,1705166972123,-154.98450155,0.00024629,4]
[311504090,1705166972143,-3258.72910629,0.0002463,2]
[311504091,1705166972163,-150.0,0.00025296,2]
[311504092,1705166972184,-682.65986216,0.0002601,2]
[311505046,1705167041680,-154.98450155,0.00024656,4]
[311505048,1705167041689,-834.20898178,0.00024656,2]
[311505056,1705167041753,-7.6574428,0.00024656,2]
[311505247,1705167043599,-5673.87021567,0.00024656,2]
[311505249,1705167043609,-2206.48053574,0.0002601,2]
[311505251,1705167043619,-3756.33,0.00027,2]
[311505253,1705167043629,-658.76,0.00027387,3]
[311505255,1705167043638,-548.97,0.00027387,3]
[311505257,1705167043648,-457.47,0.00027387,3]
[311505259,1705167043658,-974.67212154,0.00027395,5]
[311505261,1705167043666,-1092.02702993,0.00027395,2]
[311505263,1705167043676,-21467.69655764,0.00027396,2]
[311505265,1705167043685,-500.0,0.00027397,2]
[311505267,1705167043694,-500.0,0.00027397,2]
[311505269,1705167043704,-500.0,0.00027397,2]
[311505271,1705167043713,-500.0,0.00027397,2]
[311505273,1705167043722,-500.0,0.00027397,2]
[311505275,1705167043732,-500.0,0.00027397,2]
[311505277,1705167043741,-506.78614687,0.00027397,2]
[311505280,1705167043751,-500.0,0.00027397,2]
[311505281,1705167043760,-500.0,0.00027397,2]
[311505284,1705167043770,-500.0,0.00027397,2]
[311505285,1705167043779,-500.0,0.00027397,2]
[311505287,1705167043789,-500.0,0.00027397,2]
[311505289,1705167043798,-500.0,0.00027397,2]
[311505291,1705167043808,-500.0,0.00027397,2]
[311505294,1705167043818,-500.0,0.00027397,2]
[311505296,1705167043827,-500.0,0.00027397,2]
[311505298,1705167043836,-500.0,0.00027397,2]
[311505299,1705167043846,-502.68498114,0.00027397,2]
[311505302,1705167043855,-500.0,0.00027397,2]
[311505303,1705167043864,-500.0,0.00027397,2]
[311505306,1705167043874,-501.36504592,0.00027397,2]
[311505307,1705167043883,-500.0,0.00027397,2]
[311505309,1705167043893,-500.0,0.00027397,2]
[311505312,1705167043903,-500.0,0.00027397,2]
[311505314,1705167043913,-219.91537736,0.00027397,2]
[311505315,1705167043923,-500.0,0.00027397,2]
[311505318,1705167043932,-288.11097916,0.00027397,2]
[311505319,1705167043942,-341.69623957,0.00027397,2]
[311505322,1705167043952,-505.46016251,0.00027397,2]
[311505323,1705167043962,-501.79948089,0.00027397,2]
[311505325,1705167043972,-500.0,0.00027397,2]
[311505327,1705167043980,-500.0,0.00027397,2]
[311505329,1705167043991,-500.0,0.00027397,2]
[311505332,1705167044003,-500.0,0.00027397,2]
[311505334,1705167044012,-501.59674884,0.00027397,2]
[311505335,1705167044022,-500.0,0.00027397,2]
[311505337,1705167044032,-500.0,0.00027397,2]
[311505338,1705167044044,-161.33707986,0.00027397,2]
[311505339,1705167044058,-500.0,0.00027397,2]
[311505340,1705167044070,-500.0,0.00027397,2]
[311505341,1705167044083,-501.21692611,0.00027397,2]
[311505342,1705167044096,-500.0,0.00027397,2]
[311505343,1705167044108,-500.0,0.00027397,2]
[311505344,1705167044121,-500.0,0.00027397,2]
[311505346,1705167044133,-500.0,0.00027397,2]
[311505347,1705167044144,-152.25977085,0.00027397,2]
[311505349,1705167044157,-500.0,0.00027397,2]
[311505351,1705167044167,-500.0,0.00027397,2]
[311505353,1705167044179,-500.0,0.00027397,2]
[311505356,1705167044190,-618.92361801,0.00027397,2]
[311505358,1705167044201,-500.0,0.00027397,2]
[311505361,1705167044221,-500.0,0.00027397,2]
[311505363,1705167044237,-500.0,0.00027397,2]
[311505366,1705167044250,-500.0,0.00027397,2]
[311505368,1705167044263,-500.0,0.00027397,2]
[311505371,1705167044274,-500.0,0.00027397,2]
[311505373,1705167044286,-500.0,0.00027397,2]
[311505375,1705167044299,-500.0,0.00027397,2]
[311505377,1705167044312,-500.0,0.00027397,2]
[311505380,1705167044323,-500.0,0.00027397,2]
[311505382,1705167044338,-2486.66,0.00027397,2]
[311505384,1705167044347,-500.0,0.00027397,2]
[311505387,1705167044359,-500.0,0.00027397,2]
[311505389,1705167044371,-500.0,0.00027397,2]
[311505391,1705167044383,-500.0,0.00027397,2]
[311505393,1705167044393,-500.0,0.00027397,2]
[311505396,1705167044405,-403.6744754,0.00027397,2]
[311505398,1705167044416,-500.0,0.00027397,2]
[311505400,1705167044427,-500.0,0.00027397,2]
[311505402,1705167044438,-500.0,0.00027397,2]
[311505404,1705167044451,-500.0,0.00027397,2]
[311505407,1705167044463,-500.0,0.00027397,2]
[311505409,1705167044475,-500.0,0.00027397,2]
[311505411,1705167044487,-500.0,0.00027397,2]
[311505414,1705167044499,-500.0,0.00027397,2]
[311505416,1705167044508,-500.0,0.00027397,2]
[311505417,1705167044518,-500.0,0.00027397,2]
[311505420,1705167044528,-500.0,0.00027397,2]
[311505422,1705167044542,-373.6481171,0.00027397,2]
[311505424,1705167044555,-500.0,0.00027397,2]
[311505426,1705167044567,-500.0,0.00027397,2]
[311505429,1705167044577,-500.0,0.00027397,2]
[311505431,1705167044588,-500.0,0.00027397,2]
[311505433,1705167044600,-500.0,0.00027397,2]
[311505435,1705167044612,-500.0,0.00027397,2]
[311505438,1705167044624,-500.0,0.00027397,2]
[311505440,1705167044637,-534.62,0.00027397,2]
[311505442,1705167044646,-500.0,0.00027397,2]
[311505444,1705167044657,-500.0,0.00027397,2]
[311505446,1705167044668,-531.84346454,0.00027397,2]
[311505449,1705167044679,-500.0,0.00027397,2]
[311505451,1705167044690,-506.28699417,0.00027397,2]
[311505453,1705167044701,-500.0,0.00027397,2]
[311505455,1705167044712,-500.0,0.00027397,2]
[311505457,1705167044723,-500.0,0.00027397,2]
[311505460,1705167044734,-1955.58,0.00027397,2]
[311505462,1705167044745,-500.0,0.00027397,2]
[311505464,1705167044756,-500.0,0.00027397,2]
[311505466,1705167044768,-1003.24708738,0.00027397,2]
[311505468,1705167044780,-500.0,0.00027397,2]
[311505471,1705167044792,-500.0,0.00027397,2]
[311505473,1705167044805,-500.0,0.00027397,2]
[311505475,1705167044816,-862.53,0.00027397,2]
[311505477,1705167044826,-500.0,0.00027397,2]
[311505479,1705167044836,-500.0,0.00027397,2]
[311505481,1705167044845,-500.0,0.00027397,2]
[311505483,1705167044856,-500.0,0.00027397,2]
[311505485,1705167044865,-500.0,0.00027397,2]
[311505488,1705167044875,-500.0,0.00027397,2]
[311505490,1705167044885,-500.0,0.00027397,2]
[311505492,1705167044896,-500.0,0.00027397,2]
[311505494,1705167044907,-507.17422751,0.00027397,2]
[311505496,1705167044917,-433.35458811,0.00027397,2]
[311505498,1705167044928,-500.0,0.00027397,2]
[311505500,1705167044938,-283.44339765,0.00027397,2]
[311505502,1705167044948,-520.05672766,0.00027397,2]
[311505505,1705167044959,-501.54973426,0.00027397,2]
[311505507,1705167044971,-500.0,0.00027397,2]
[311505509,1705167044982,-500.0,0.00027397,2]
[311505511,1705167044991,-500.0,0.00027397,2]
[311505513,1705167045001,-506.56848822,0.00027397,2]
[311505515,1705167045011,-500.0,0.00027397,2]
[311505517,1705167045021,-500.0,0.00027397,2]
[311505519,1705167045031,-500.0,0.00027397,2]
[311505521,1705167045041,-283.71073318,0.00027397,2]
[311505523,1705167045052,-181.0274032,0.00027397,2]
[311505525,1705167045062,-500.0,0.00027397,2]
[311505527,1705167045072,-500.0,0.00027397,2]
[311505530,1705167045083,-500.0,0.00027397,2]
[311505532,1705167045092,-500.0,0.00027397,2]
[311505534,1705167045102,-500.0,0.00027397,2]
[311505536,1705167045112,-500.0,0.00027397,2]
[311505538,1705167045122,-509.23456875,0.00027397,2]
[311505540,1705167045133,-166.98600418,0.00027397,2]
[311505542,1705167045146,-500.0,0.00027397,2]
[311505544,1705167045157,-527.88068403,0.00027397,2]
[311505546,1705167045168,-500.0,0.00027397,2]
[311505549,1705167045178,-500.0,0.00027397,2]
[311505551,1705167045190,-500.0,0.00027397,2]
[311505553,1705167045200,-500.0,0.00027397,2]
[311505555,1705167045210,-1260.52,0.00027397,2]
[311505557,1705167045221,-500.0,0.00027397,2]
[311505559,1705167045233,-10131.0472122,0.000274,2]
[311505561,1705167045243,-264.56836364,0.00027671,2]
[311505564,1705167045254,-500.0,0.00027671,2]
[311505566,1705167045264,-503.40506614,0.00027671,2]
[311505568,1705167045274,-500.0,0.00027671,2]
[311505570,1705167045284,-407.32629308,0.00027671,2]
[311505572,1705167045296,-500.0,0.00027671,2]
[311505574,1705167045310,-500.0,0.00027671,2]
[311505576,1705167045321,-220.99118478,0.00027671,2]
[311505579,1705167045331,-318.46350329,0.00027671,2]
[311505581,1705167045341,-500.0,0.00027671,2]
[311505583,1705167045351,-500.0,0.00027671,2]
[311505585,1705167045361,-500.0,0.00027671,2]
[311505599,1705167045485,-500.0,0.00027671,2]
[311505601,1705167045494,-500.0,0.00027671,2]
[311505603,1705167045503,-500.0,0.00027671,2]
[311505605,1705167045512,-500.0,0.00027671,2]
[311505607,1705167045522,-500.0,0.00027671,2]
[311505609,1705167045531,-500.0,0.00027671,2]
[311505611,1705167045541,-500.0,0.00027671,2]
[311505613,1705167045550,-500.0,0.00027671,2]
[311505615,1705167045560,-500.0,0.00027671,2]
[311505617,1705167045570,-500.0,0.00027671,2]
[311505619,1705167045578,-500.0,0.00027671,2]
[311505621,1705167045587,-546.83656428,0.00027671,2]
[311505623,1705167045597,-2486.66,0.00027671,2]
[311505625,1705167045606,-548.20532621,0.00027671,2]
[311505627,1705167045615,-500.0,0.00027671,2]
[311505629,1705167045624,-354.73174398,0.00027671,2]
[311505631,1705167045634,-139.70767487,0.00027671,2]
[311505637,1705167045679,-360.29232513,0.00027671,2]
[311505639,1705167045689,-556.26,0.00027671,2]
[311505641,1705167045698,-161.18321614,0.00027671,2]
[311505643,1705167045707,-500.0,0.00027671,2]
[311505645,1705167045717,-500.0,0.00027671,2]
[311505647,1705167045726,-500.0,0.00027671,2]
[311505649,1705167045734,-500.0,0.00027671,2]
[311505651,1705167045743,-500.0,0.00027671,2]
[311505653,1705167045753,-500.0,0.00027671,2]
[311505655,1705167045762,-393.25991489,0.00027671,2]
[311506815,1705168003098,-3413.71360784,0.00024655,2]
[311506857,1705168206706,786.36637838,0.00027,19]
[311506984,1705168234125,-677.30340506,0.00024574,2]
[311506985,1705168234135,-155.01550155,0.00024574,4]
[311506986,1705168234144,-166.666666,0.00024575,2]
[311506987,1705168234154,-230.58459537,0.00024655,2]
[311507070,1705168239374,-732.54514733,0.00024655,2]
[311507452,1705168242781,-1974.0,0.00024655,2]
[311507455,1705168242792,-164.89328971,0.00024655,2]
[311507457,1705168242802,-3833.1682345,0.00024655,2]
[311507459,1705168242814,-2967.19116906,0.00025,2]
[311507671,1705168244966,-11488.70991913,0.00025,2]
[311507672,1705168244978,-10444.09891181,0.00025,2]
[311507673,1705168244987,-170.099936,0.00025273,2]
[311507674,1705168244996,-150.0,0.00025571,2]
[311507675,1705168245005,-166.666666,0.00025691,2]
[311507676,1705168245014,-759.01091846,0.00026628,2]
[311507678,1705168245024,-166.666666,0.00026808,2]
[311507681,1705168245033,-500.0,0.00027397,2]
[311507684,1705168245041,-500.0,0.00027397,2]
[311507686,1705168245051,-545.08796361,0.00027397,2]
[311507688,1705168245060,-500.0,0.00027397,2]
[311507690,1705168245069,-500.0,0.00027397,2]
[311507692,1705168245078,-500.0,0.00027397,2]
[311507694,1705168245088,-500.0,0.00027397,2]
[311507696,1705168245097,-500.0,0.00027397,2]
[311507698,1705168245106,-500.0,0.00027397,2]
[311507701,1705168245116,-500.0,0.00027397,2]
[311507704,1705168245125,-500.0,0.00027397,2]
[311507706,1705168245134,-10131.0472122,0.000274,2]
[311507709,1705168245143,-200.0,0.00027498,15]
[311507711,1705168245152,-637.38,0.0002766,3]
[311507713,1705168245161,-1215.43,0.0002766,3]
[311507715,1705168245170,-1012.86,0.0002766,3]
[311507717,1705168245179,-844.05,0.0002766,3]
[311507719,1705168245189,-500.0,0.0002767,2]
[311507721,1705168245198,-349.2,0.0002767,2]
[311507723,1705168245207,-500.0,0.0002767,2]
[311507725,1705168245216,-500.0,0.0002767,2]
[311507726,1705168245225,-500.0,0.0002767,2]
[311507728,1705168245235,-500.0,0.0002767,2]
[311507730,1705168245244,-500.0,0.0002767,2]
[311507732,1705168245253,-500.0,0.0002767,2]
[311507734,1705168245262,-500.0,0.0002767,2]
[311507736,1705168245272,-826.59,0.0002767,2]
[311507738,1705168245280,-500.0,0.0002767,2]
[311507740,1705168245290,-500.0,0.0002767,2]
[311507742,1705168245299,-512.35,0.0002767,2]
[311507744,1705168245308,-500.0,0.0002767,2]
[311507746,1705168245317,-459.48932002,0.0002767,2]
[311507748,1705168245326,-500.0,0.0002767,2]
[311507750,1705168245335,-500.0,0.0002767,2]
[311507752,1705168245343,-491.44186186,0.0002767,2]
[311507754,1705168245352,-500.0,0.0002767,2]
[311507756,1705168245361,-500.0,0.0002767,2]
[311507758,1705168245370,-500.0,0.0002767,2]
[311507760,1705168245379,-500.0,0.0002767,2]
[311507762,1705168245388,-500.0,0.0002767,2]
[311507764,1705168245397,-500.0,0.0002767,2]
[311507766,1705168245406,-500.0,0.0002767,2]
[311507768,1705168245415,-500.0,0.0002767,2]
[311507770,1705168245424,-2279.44,0.0002767,2]
[311507772,1705168245433,-500.0,0.0002767,2]
[311507774,1705168245441,-500.0,0.0002767,2]
[311507776,1705168245450,-500.0,0.0002767,2]
[311507778,1705168245459,-500.0,0.0002767,2]
[311507780,1705168245468,-500.0,0.0002767,2]
[311507782,1705168245477,-500.0,0.0002767,2]
[311507784,1705168245485,-455.30537147,0.0002767,2]
[311508423,1705168265168,3501.73740461,0.00017478,2]
[311508722,1705169434286,-848.66817018,0.00024598,2]
[311508723,1705169434297,-677.30340506,0.00024598,2]
[311508724,1705169434307,-155.01550155,0.00024599,4]
[311508725,1705169434317,-898.09919748,0.000246,2]
[311508791,1705169438204,-1372.03666731,0.000246,2]
[311509141,1705169442954,-4245.60077546,0.000246,2]
[311509142,1705169442964,-788.48855141,0.00024655,2]
[311509143,1705169442974,-386.25640198,0.00025932,2]
[311509292,1705169446023,-1105.46485572,0.00025932,2]
[311509294,1705169446033,-166.666666,0.00026273,2]
[311509296,1705169446042,-200.0,0.00026794,2]
[311509298,1705169446052,-1112.22182837,0.00026873,2]
[311509300,1705169446061,-608.09,0.0002767,2]
[311509302,1705169446071,-500.0,0.0002767,2]
[311509304,1705169446079,-281.7654953,0.0002767,2]
[311509427,1705169461395,1352.5131174,0.00017478,5]
[311509619,1705170257351,2626.13066537,0.00016,5]
[311509662,1705170363988,1352.5131174,0.00016,5]
[311509667,1705170377982,1352.5131174,0.00016,5]
[311509672,1705170403991,515.1344963,0.00016,5]
[311509679,1705170507745,200.0,0.00024693,7]
[311509704,1705170545182,-832.65986216,0.00022444,2]
[311509812,1705170634425,-219.04930635,0.0002244,2]
[311509815,1705170634435,-722.33957052,0.0002244,2]
[311509817,1705170634446,-126.32859966,0.0002244,2]
[311509818,1705170634455,-155.02170304,0.00022441,4]
[311509820,1705170634464,-1195.69868667,0.00022441,2]
[311509822,1705170634473,-677.30340506,0.00022442,2]
[311509824,1705170634482,-1251.25826469,0.00022442,2]
[311509826,1705170634491,-5461.97016209,0.00022444,2]
[311509829,1705170634503,-221.106616,0.00022444,2]
[311509831,1705170634515,-187.3554591,0.00022455,2]
[311509833,1705170634524,-166.666666,0.00023619,2]
[311509835,1705170634534,-497.35209618,0.000239,5]
[311509837,1705170634543,-624.30916,0.00024087,2]
[311509839,1705170634553,-3195.27134568,0.00024688,2]
[311509849,1705170634639,-7965.71449541,0.00024688,2]
[311510560,1705170640975,-11138.43806921,0.00024688,2]
[311510563,1705170640987,-166.666666,0.00025229,2]
[311510566,1705170640997,-158.11687988,0.00025292,2]
[311510569,1705170641007,-185.11320771,0.000254,2]
[311510573,1705170641020,-274.26678229,0.00026,2]
[311510576,1705170641029,-170.164372,0.00026184,2]
[311510579,1705170641040,-166.666666,0.00026839,2]
[311510582,1705170641050,-975.795941,0.00027118,2]
[311510584,1705170641060,-1002.0,0.00027118,2]
[311510587,1705170641082,-1112.22182837,0.0002712,2]
[311510589,1705170641092,-280.0,0.00027162,15]
[311510592,1705170641102,-5220.70605515,0.000274,2]
[311510594,1705170641113,-151.19325708,0.00028,14]
[311510596,1705170641124,-911.0,0.000282,2]
[311510598,1705170641135,-970.27577393,0.000284,2]
[311510599,1705170641149,-1561.29604017,0.000284,2]
[311510600,1705170641159,-164.047891,0.00028401,2]
[311510601,1705170641170,-198.73409094,0.00028402,2]
[311510602,1705170641180,-853.06855952,0.00029,29]
[311510604,1705170641192,-146.93144048,0.00029,29]
[311510605,1705170641202,-2304.81104845,0.00029099,2]
[311510606,1705170641212,-2182.78568701,0.000291,4]
[311510607,1705170641222,-250.99356253,0.00029419,2]
[311510608,1705170641233,-677.94194944,0.00029419,2]
[311510609,1705170641243,-231.04613037,0.00029423,2]
[311510610,1705170641253,-172.40751655,0.00029427,2]
[311510611,1705170641263,-158.11687987,0.00029486,2]
[311510612,1705170641272,-2815.31898736,0.00029529,2]
[311510613,1705170641285,-661.93321014,0.00029529,2]
[311510615,1705170641295,-1578.68914982,0.000297,2]
[311510618,1705170641311,-2329.49828911,0.000297,2]
[311510620,1705170641323,-7646.05591154,0.000297,2]
[311510638,1705170641485,-236.5987909,0.000297,2]
[311510640,1705170641494,-100.32216465,0.00029878,15]
[311510646,1705170641543,-290.67783535,0.00029878,15]
[311510649,1705170641553,-160.71702813,0.00029998,2]
[311510651,1705170641564,-166.35364662,0.00029998,2]
[311510653,1705170641576,-1000.0,0.0003,30]
[311510655,1705170641585,-500.0,0.0003,3]
[311510657,1705170641595,-62.22514061,0.0003,2]
[311510659,1705170641607,-128.77485939,0.0003,2]
[311510661,1705170641616,-687.09987426,0.0003,4]
[311510663,1705170641626,-160.7998464,0.00030036,2]
[311510665,1705170641635,-457.77,0.00030122,3]
[311510667,1705170641645,-872.94,0.00030122,3]
[311510669,1705170641654,-727.45,0.00030122,3]
[311510671,1705170641663,-606.21,0.00030126,3]
[311510673,1705170641672,-1578.97802722,0.00030131,4]
[311510675,1705170641681,-901.52720536,0.00030131,4]
[311510678,1705170641699,-835.37137983,0.00030131,4]
[311510680,1705170641708,-3935.17481612,0.00030132,4]
[311510682,1705170641717,-155.14101314,0.00030132,4]
[311510684,1705170641726,-1290.72817531,0.00030132,4]
[311510686,1705170641736,-151.0,0.00030132,2]
[311510688,1705170641746,-671.39481401,0.00030133,4]
[311510690,1705170641755,-242.38058567,0.00030133,7]
[311510692,1705170641764,-900.327465,0.00030134,4]
[311510694,1705170641774,-155.51985441,0.00030134,20]
[311510696,1705170641783,-4136.97496273,0.00030135,2]
[311510698,1705170641793,-151.0,0.00030136,2]
[311510700,1705170641803,-151.0,0.00030136,2]
[311510702,1705170641812,-151.0,0.00030136,2]
[311510704,1705170641822,-324.364317,0.00030136,2]
[311510706,1705170641832,-324.364317,0.00030136,2]
[311510708,1705170641841,-324.364317,0.00030136,2]
[311510710,1705170641850,-324.364317,0.00030136,2]
[311510712,1705170641860,-324.364317,0.00030136,2]
[311510714,1705170641868,-324.364317,0.00030136,2]
[311510716,1705170641878,-324.364317,0.00030136,2]
[311510718,1705170641887,-324.364317,0.00030136,2]
[311510720,1705170641896,-151.0,0.00030136,2]
[311510722,1705170641905,-158.981729,0.00030136,2]
[311510724,1705170641914,-1252.57362,0.00030136,2]
[311510726,1705170641923,-1252.57362,0.00030136,2]
[311510728,1705170641938,-1252.57362,0.00030136,2]
[311510730,1705170641974,-1252.57362,0.00030136,2]
[311510731,1705170641987,-1252.57362,0.00030136,2]
[311510734,1705170641998,-1252.57362,0.00030136,2]
[311510748,1705170642008,-1252.57362,0.00030136,2]
[311510750,1705170642147,-1252.57362,0.00030136,2]
[311510752,1705170642157,-1252.57362,0.00030136,2]
[311510754,1705170642166,-1252.57362,0.00030136,2]
[311510756,1705170642176,-1252.57362,0.00030136,2]
[311510758,1705170642185,-1252.57362,0.00030136,2]
[311510760,1705170642195,-275.34614804,0.00030136,2]
[311510762,1705170642204,-242.45759116,0.00030136,2]
[311510764,1705170642214,-500.0,0.00030136,2]
[311510766,1705170642223,-500.0,0.00030136,2]
[311510768,1705170642233,-500.0,0.00030136,2]
[311510770,1705170642243,-500.0,0.00030136,2]
[311510772,1705170642252,-500.0,0.00030136,2]
[311510774,1705170642262,-500.0,0.00030136,2]
[311510776,1705170642272,-158.10850089,0.00030136,2]
[311510778,1705170642281,-500.0,0.00030136,2]
[311510780,1705170642291,-500.0,0.00030136,2]
[311510782,1705170642300,-500.0,0.00030136,2]
[311510784,1705170642309,-500.0,0.00030136,2]
[311510786,1705170642318,-500.0,0.00030136,2]
[311510788,1705170642327,-500.0,0.00030136,2]
[311510790,1705170642338,-645.29925954,0.00030136,2]
[311510791,1705170642348,-500.0,0.00030136,2]
[311510793,1705170642359,-514.91426394,0.00030136,2]
[311510795,1705170642370,-502.77165723,0.00030136,2]
[311510798,1705170642380,-500.0,0.00030136,2]
[311510799,1705170642389,-500.0,0.00030136,2]
[311510802,1705170642399,-552.27802625,0.00030136,2]
[311510803,1705170642408,-500.0,0.00030136,2]
[311510806,1705170642418,-548.32472871,0.00030136,2]
[311510807,1705170642427,-500.0,0.00030136,2]